bitfinex/quotes_ETHUSD_20250518
["timestamp","ask_amount","ask_price","bid_price","bid_amount"]
[1747610470730,4.09972564,2439.2,2439.0,0.8191]
[1747610470925,10.21962966,2439.3,2439.0,0.8191]
[1747610471435,4.0998729,2439.1,2439.0,1.3691]
[1747610471726,4.0998729,2439.1,2439.0,4.34548288]
[1747610472229,4.09978463,2439.2,2439.0,4.34548288]
[1747610473333,0.8057,2439.8,2439.0,4.34548288]
[1747610473334,4.09831267,2440.1,2439.7,0.8151]
[1747610473627,4.09838804,2440.0,2439.8,8.664]
[1747610473830,4.09852862,2439.9,2439.8,8.664]
[1747610474996,4.88232862,2439.9,2439.8,8.664]
[1747610475193,6.12,2440.1,2439.4,0.55]
[1747610475394,4.09862372,2439.9,2439.5,8.664]
[1747610475597,4.09836065,2440.0,2439.6,2.232]
[1747610475802,10.21822082,2440.1,2439.6,2.232]
[1747610476027,0.7838,2440.6,2439.6,2.232]
[1747610476028,4.09803615,2440.2,2439.9,0.55]
[1747610476270,4.09803615,2440.2,2440.0,8.663]
[1747610477150,4.09769901,2440.4,2440.0,8.663]
[1747610477361,4.09796578,2440.3,2440.1,0.9213]
[1747610477578,4.09802475,2440.2,2440.1,0.9213]
[1747610477868,4.0977282,2440.4,2440.1,0.9213]
[1747610478039,4.0977282,2440.4,2440.2,0.7606]
[1747610478558,4.09747946,2440.6,2440.2,0.7606]
[1747610478758,4.09718523,2440.7,2440.2,0.7606]
[1747610479071,4.09718523,2440.7,2440.3,0.57800856]
[1747610479224,4.09756496,2440.5,2440.2,0.7606]
[1747610479678,4.09746812,2440.6,2440.2,0.7606]
[1747610480008,4.09746812,2440.6,2440.3,0.55]
[1747610481162,4.09730665,2440.7,2440.3,0.55]
[1747610481368,6.9389,2441.2,2440.5,1.3816]
[1747610481534,6.9389,2441.2,2440.6,8.662]
[1747610481535,4.09696977,2440.9,2440.6,8.662]
[1747610481727,4.0966336,2441.1,2440.6,8.662]
[1747610481728,4.09670212,2441.0,2440.6,8.662]
[1747610482053,4.09704385,2440.8,2440.6,8.662]
[1747610483048,6.12,2441.2,2440.9,0.7666]
[1747610483339,4.09640034,2441.2,2440.9,0.7666]
[1747610483535,4.09554803,2441.7,2440.9,0.7666]
[1747610483536,0.7892,2442.1,2441.2,0.55]
[1747610483873,13.52431542,2442.6,2441.6,0.55]
[1747610484172,0.7892,2442.6,2441.8,0.55]
[1747610484389,0.7588,2442.9,2441.9,16.35691177]
[1747610484530,4.85236256,2442.9,2441.9,24.35691177]
[1747610484731,4.85232636,2442.9,2441.9,24.35691177]
[1747610485037,6.12,2443.0,2441.9,24.35691177]
[1747610485259,0.7588,2443.3,2441.9,24.35691177]
[1747610485260,4.8517532,2443.3,2441.9,24.35691177]
[1747610485571,4.85168395,2443.3,2441.9,24.35691177]
[1747610486068,4.85168095,2443.3,2441.9,24.35691177]
[1747610486258,0.02174052,2442.0,2441.9,24.35691177]
[1747610486432,4.85168095,2443.3,2441.9,24.35691177]
[1747610486633,1.61168893,2444.0,2443.3,0.55]
[1747610486862,1.61168893,2444.0,2443.5,0.55]
[1747610487466,1.61168893,2444.0,2443.6,4.0922661]
[1747610487673,0.7787,2444.1,2443.5,4.64237888]
[1747610487860,0.7787,2444.1,2443.4,17.694]
[1747610488066,4.09215533,2443.7,2443.6,8.655]
[1747610488252,12.09215533,2443.7,2443.6,8.655]
[1747610488694,8.0,2443.7,2443.6,8.655]
[1747610488903,12.09215533,2443.7,2443.6,8.655]
[1747610489043,4.09301807,2443.2,2443.1,8.655]
[1747610489240,12.84658614,2443.5,2443.1,8.655]
[1747610489686,0.7929,2443.9,2443.2,0.55]
[1747610489868,6.43066386,2444.4,2443.9,0.55]
[1747610490182,4.08955045,2445.3,2443.9,0.55]
[1747610490183,0.7929,2444.8,2444.4,0.55]
[1747610490346,9.4229,2445.2,2444.5,12.74572014]
[1747610490542,0.7929,2445.2,2444.5,8.655]
[1747610490756,0.7929,2445.2,2444.6,4.09055586]
[1747610490954,12.8825926,2445.2,2444.6,4.09055586]
[1747610491156,4.09007558,2445.0,2444.6,0.55]
[1747610491387,4.09023727,2444.9,2444.5,8.655]
[1747610491699,8.7929,2445.2,2444.6,4.64063148]
[1747610491700,4.88263525,2445.2,2444.6,4.64063148]
[1747610491845,4.08973525,2445.2,2444.6,4.64063148]
[1747610492045,4.09000173,2445.0,2444.6,0.55]
[1747610492262,4.08986398,2445.1,2444.6,0.55]
[1747610492467,4.08998225,2445.0,2444.6,0.55]
[1747610492672,4.08949727,2445.3,2444.6,0.55]
[1747610492843,0.7929,2445.5,2444.6,1.53486175]
[1747610493060,4.08931054,2445.4,2444.7,0.55]
[1747610493276,0.30045963,2445.4,2444.7,0.55]
[1747610493446,0.30045963,2445.4,2445.1,3.50214802]
[1747610493653,0.30045963,2445.4,2445.3,9.12652709]
[1747610493859,0.30045963,2445.4,2445.3,17.75052709]
[1747610494681,0.30045963,2445.4,2445.3,18.5991]
[1747610494884,0.30045963,2445.4,2445.3,8.65]
[1747610495686,0.30045963,2445.4,2445.2,17.683]
[1747610495989,4.08947777,2445.3,2445.2,17.683]
[1747610496170,4.08947777,2445.3,2445.2,26.333]
[1747610496484,4.08947777,2445.3,2445.2,17.683]
[1747610496674,1.10845963,2445.4,2445.2,26.3]
[1747610496862,5.19777253,2445.4,2445.2,26.3]
[1747610497281,4.08947777,2445.3,2445.2,26.3]
[1747610497483,1.10845963,2445.4,2445.2,26.3]
[1747610497780,5.19778163,2445.4,2445.2,26.3]
[1747610498491,5.19784921,2445.4,2445.2,26.3]
[1747610498667,4.08947777,2445.3,2445.2,26.3]
[1747610498981,4.89736553,2445.4,2445.2,26.3]
[1747610499182,0.808,2445.4,2445.2,26.3]
[1747610499351,4.08947777,2445.3,2445.2,26.3]
[1747610499754,4.89731713,2445.4,2445.2,26.3]
[1747610500054,17.683,2447.7,2445.2,26.3]
[1747610500055,4.85017564,2446.0,2445.5,4.089101]
[1747610500254,4.85017564,2446.0,2445.4,4.63922649]
[1747610500574,4.0885338,2445.9,2445.4,4.63922649]
[1747610500773,4.0885338,2445.9,2445.4,0.55]
[1747610500972,4.85013571,2446.0,2445.4,0.55]
[1747610501155,4.85015472,2446.0,2445.4,0.55]
[1747610501357,4.08865153,2445.8,2445.3,0.8067]
[1747610501578,4.08872619,2445.8,2445.3,4.89616117]
[1747610501956,4.0885622,2445.9,2445.3,4.89616117]
[1747610502294,4.08795511,2446.3,2445.8,4.08853516]
[1747610502490,0.7794,2446.7,2445.9,8.615]
[1747610502491,4.08797781,2446.2,2445.9,8.615]
[1747610502871,8.0,2446.6,2445.9,8.615]
[1747610503068,4.08731928,2446.6,2445.9,8.615]
[1747610503268,0.7794,2446.7,2446.0,0.753]
[1747610503468,4.08780607,2446.3,2445.9,10.80114775]
[1747610503665,4.86656699,2446.7,2445.7,13.99968865]
[1747610503666,4.08799287,2446.2,2445.7,1.303]
[1747610503898,4.8665933,2446.7,2446.1,4.08800138]
[1747610504103,4.08692434,2446.9,2446.3,4.08770784]
[1747610504280,0.9094,2447.0,2446.4,12.70051661]
[1747610504605,4.08741528,2446.6,2446.4,8.613]
[1747610504768,4.08701634,2446.8,2446.4,8.613]
[1747610504968,0.9094,2447.0,2446.5,0.55]
[1747610504969,4.08688264,2446.9,2446.5,0.55]
[1747610505294,4.08680371,2446.9,2446.5,0.55]
[1747610505604,4.08699862,2446.8,2446.5,0.55]
[1747610505803,4.08733903,2446.6,2446.3,0.753]
[1747610506004,0.13,2447.0,2446.3,0.753]
[1747610506205,4.08775528,2446.4,2446.2,17.664]
[1747610506384,4.08775528,2446.4,2446.3,8.611]
[1747610506810,4.08775528,2446.4,2446.2,17.664]
[1747610507008,0.7548,2446.8,2446.3,8.611]
[1747610507312,4.08757633,2446.5,2446.3,8.611]
[1747610508174,0.13,2447.0,2446.4,0.55]
[1747610508398,0.13,2447.0,2446.3,11.2385]
[1747610508399,0.13,2447.0,2446.6,1.3391]
[1747610508584,0.13,2447.0,2446.7,0.0081826]
[1747610508788,0.13,2447.0,2446.8,8.61]
[1747610509677,0.13,2447.0,2446.6,0.7891]
[1747610509877,4.08689981,2446.9,2446.7,17.21]
[1747610510207,4.08680371,2446.9,2446.8,8.61]
[1747610510789,4.08680371,2446.9,2446.4,0.55]
[1747610511117,4.08776339,2446.4,2446.2,26.263]
[1747610511274,4.08754409,2446.5,2446.3,8.61]
[1747610511813,4.08763897,2446.4,2446.3,8.61]
[1747610512110,4.08755302,2446.5,2446.2,17.664]
[1747610512316,4.08763897,2446.4,2446.3,8.609]
[1747610512604,4.08763897,2446.4,2446.2,17.664]
[1747610512809,4.08780607,2446.3,2446.2,17.664]
[1747610513007,4.08780607,2446.3,2446.2,26.273]
[1747610513779,4.08780607,2446.3,2446.2,26.53767331]
[1747610514382,4.08780607,2446.3,2446.2,17.92867331]
[1747610514589,4.08780607,2446.3,2446.2,26.53767331]
[1747610515821,4.08780607,2446.3,2446.2,0.26467331]
[1747610516027,12.91390872,2446.3,2446.2,0.26467331]
[1747610516325,12.86280607,2446.3,2446.2,0.26467331]
[1747610517124,4.08847459,2445.9,2445.8,8.608]
[1747610517486,12.86347459,2445.9,2445.8,8.608]
[1747610518442,12.86347459,2445.9,2445.8,8.8742033]
[1747610519055,12.86347459,2445.9,2445.8,0.2662033]
[1747610520549,13.41347459,2445.9,2445.8,0.2662033]
[1747610520866,12.89734683,2444.9,2444.8,0.88365152]
[1747610521022,12.09014683,2444.9,2444.8,0.88365152]
[1747610521231,0.7802,2445.2,2444.8,0.88365152]
[1747610521532,4.08931054,2445.4,2444.8,13.58287633]
[1747610521828,8.7802,2445.5,2444.9,1.44134763]
[1747610522050,8.7802,2445.5,2444.8,9.49265152]
[1747610522364,4.08947777,2445.3,2444.8,0.88365152]
[1747610522544,12.86943518,2445.5,2444.9,8.609]
[1747610522751,4.08997955,2445.0,2444.9,8.609]
[1747610522919,8.7802,2445.5,2444.9,8.609]
[1747610523124,8.59,2445.5,2444.9,8.609]
[1747610523356,8.59,2445.5,2444.9,9.60796]
[1747610523654,4.08997955,2445.0,2444.9,8.609]
[1747610523842,4.08984815,2445.1,2444.9,8.609]
[1747610524031,0.7802,2445.7,2444.9,8.609]
[1747610524232,4.08944012,2445.4,2444.9,8.609]
[1747610524436,4.08923863,2445.5,2444.9,8.609]
[1747610524751,4.08707092,2446.8,2445.2,0.55]
[1747610524922,0.7849,2446.4,2445.4,0.55]
[1747610525126,4.08838822,2446.0,2445.6,1.3791]
[1747610525346,4.08797318,2446.2,2445.6,1.3791]
[1747610525544,4.08864175,2445.8,2445.7,8.61]
[1747610526134,4.08931054,2445.4,2445.3,0.88365152]
[1747610526319,4.08931054,2445.4,2445.3,9.49365152]
[1747610526524,4.08931054,2445.4,2445.3,0.88365152]
[1747610527451,4.88571054,2445.4,2445.3,0.88365152]
[1747610527941,19.00571054,2445.4,2445.3,0.88365152]
[1747610528329,4.08997955,2445.0,2444.9,8.588]
[1747610529024,4.08929399,2445.5,2444.9,15.38129814]
[1747610529225,8.586,2446.2,2445.1,0.55]
[1747610529449,4.089469,2445.4,2445.1,0.55]
[1747610529639,4.08918694,2445.5,2445.1,0.55]
[1747610530039,8.0,2446.0,2445.0,0.7865]
[1747610530239,0.7663,2445.9,2445.0,0.7865]
[1747610530441,4.08911069,2445.6,2445.0,1.48428574]
[1747610530643,4.08960471,2445.3,2445.1,8.589]
[1747610531066,4.08964501,2445.2,2445.1,8.589]
[1747610531936,12.08964501,2445.2,2444.7,17.658]
[1747610532134,17.3944,2445.6,2444.7,26.247]
[1747610532451,4.08967158,2445.2,2444.8,0.7728]
[1747610532689,4.08984505,2445.1,2444.8,0.7728]
[1747610532886,4.09006771,2445.0,2444.8,0.7728]
[1747610533194,4.09014683,2444.9,2444.8,0.7728]
[1747610533400,4.0898837,2445.1,2444.9,8.589]
[1747610533573,4.08997955,2445.0,2444.9,8.589]
[1747610534807,4.08971142,2445.2,2444.9,8.589]
[1747610534991,4.08992697,2445.1,2444.9,8.589]
[1747610535308,4.08934077,2445.4,2445.0,0.55]
[1747610535682,9.3798,2445.8,2445.1,0.26725009]
[1747610535885,4.08939411,2445.4,2445.1,0.26725009]
[1747610536087,4.08909312,2445.6,2445.1,4.35704272]
[1747610536415,4.0891701,2445.5,2445.1,2.29606271]
[1747610537101,0.7968,2445.8,2445.1,0.26725009]
[1747610537305,0.7968,2445.8,2445.2,0.26725009]
[1747610537306,4.08961203,2445.3,2445.2,0.26725009]
[1747610537594,4.0892396,2445.5,2445.2,0.26725009]
[1747610537804,4.08947777,2445.3,2445.2,0.26725009]
[1747610540377,4.88397777,2445.3,2445.2,0.26725009]
[1747610541278,4.08964501,2445.2,2445.1,0.26725009]
[1747610542409,4.08924427,2445.5,2445.1,0.26725009]
[1747610542608,4.08923108,2445.5,2445.1,0.9657559]
[1747610542816,4.08880892,2445.7,2445.1,0.9657559]
[1747610543017,4.08921545,2445.5,2445.1,0.26725009]
[1747610543215,4.08947777,2445.3,2445.2,0.26725009]
[1747610543582,4.9621986,2445.3,2445.2,0.26725009]
[1747610543782,4.91107777,2445.3,2445.2,0.26725009]
[1747610544582,4.08964501,2445.2,2445.1,8.59]
[1747610547284,10.20964501,2445.2,2445.1,8.59]
[1747610548098,10.20964501,2445.2,2445.1,8.85904167]
[1747610548931,19.04134501,2445.2,2445.1,0.26904167]
[1747610549795,19.04134501,2445.2,2444.7,26.248]
[1747610549999,4.08997955,2445.0,2444.7,28.5147917]
[1747610550225,4.09016987,2444.9,2444.7,28.5147917]
[1747610550822,4.09001263,2445.0,2444.7,26.248]
[1747610550998,4.09031413,2444.8,2444.7,26.248]
[1747610551206,4.09031413,2444.8,2444.7,26.51697594]
[1747610552026,4.09006375,2445.0,2444.8,0.7714]
[1747610552334,4.09014683,2444.9,2444.8,0.7714]
[1747610553200,4.09005465,2445.0,2444.8,0.7714]
[1747610553394,10.20985905,2445.1,2444.8,0.7714]
[1747610553700,4.09005656,2445.0,2444.9,0.26897594]
[1747610554240,19.04198528,2445.0,2444.9,0.26897594]
[1747610554398,26.76912425,2445.0,2444.9,0.26897594]
[1747610554909,4.87178347,2444.4,2444.3,8.59]
[1747610555110,18.72280753,2444.4,2444.3,8.59]
[1747610556220,17.94200753,2444.4,2444.3,8.59]
[1747610556608,4.09148561,2444.1,2444.0,17.662]
[1747610556830,4.09249028,2443.5,2443.4,9.01843272]
[1747610557743,12.09249028,2443.5,2443.4,9.01843272]
[1747610557951,12.85879028,2443.5,2443.4,9.01843272]
[1747610558450,21.42879028,2443.5,2443.4,0.44843272]
[1747610558816,4.09316032,2443.1,2443.0,9.358]
[1747610559217,4.09316032,2443.1,2443.0,8.571]
[1747610559925,4.09305961,2443.2,2443.0,8.571]
[1747610560119,4.09316032,2443.1,2443.0,8.571]
[1747610560548,4.09335821,2443.0,2442.8,0.7729]
[1747610560749,4.09335821,2443.0,2442.9,8.573]
[1747610561337,4.093663,2442.8,2442.7,8.573]
[1747610561551,17.94371417,2443.4,2442.7,12.66675853]
[1747610561552,4.09295959,2443.3,2442.7,12.66675853]
[1747610561754,4.09318963,2443.1,2442.7,11.73862585]
[1747610562649,4.09282527,2443.3,2442.7,11.73862585]
[1747610562650,4.09307545,2443.2,2442.7,11.73862585]
[1747610562862,5.85102406,2443.4,2442.9,0.8316]
[1747610563163,5.85102406,2443.7,2443.0,4.65166037]
[1747610563369,4.09256862,2443.5,2443.0,0.55]
[1747610563535,4.09256862,2443.5,2443.0,1.50769139]
[1747610563865,4.09256862,2443.5,2443.0,5.60100691]
[1747610564049,4.09258474,2443.5,2443.1,0.8272]
[1747610564254,4.09258474,2443.5,2443.2,8.574]
[1747610564560,4.09239964,2443.6,2443.2,8.574]
[1747610564762,9.94326492,2443.7,2443.2,14.57643972]
[1747610565063,4.09245087,2443.6,2443.3,0.7885]
[1747610565466,4.09241861,2443.6,2443.3,0.7885]
[1747610565661,4.09265777,2443.4,2443.3,0.7885]
[1747610565861,4.09259143,2443.5,2443.3,0.7885]
[1747610566243,9.94273339,2444.0,2443.4,0.55]
[1747610566447,6.61322406,2444.6,2443.7,0.55]
[1747610566641,4.09173856,2444.0,2443.8,8.575]
[1747610566852,4.09182045,2443.9,2443.8,8.575]
[1747610568279,4.0923228,2443.6,2443.5,17.67]
[1747610568480,4.0923228,2443.6,2443.5,26.245]
[1747610568682,5.85102406,2443.9,2443.5,26.245]
[1747610568897,4.09226795,2443.7,2443.5,26.245]
[1747610569049,4.0923228,2443.6,2443.5,26.245]
[1747610569769,9.94334686,2443.6,2443.5,8.575]
[1747610569970,10.73784686,2443.6,2443.5,8.575]
[1747610570366,9.94334686,2443.6,2443.5,8.575]
[1747610571181,5.85102406,2443.6,2443.5,9.3773]
[1747610571564,9.94334686,2443.6,2443.5,9.3773]
[1747610572080,9.94334686,2443.6,2443.5,8.575]
[1747610572778,5.85102406,2443.6,2443.5,8.575]
[1747610572971,5.85102406,2443.6,2443.5,11.19406587]
[1747610573359,5.85102406,2443.6,2443.5,15.28655615]
[1747610573562,4.09165166,2444.1,2443.6,4.09230555]
[1747610573755,4.09177018,2444.0,2443.6,0.55]
[1747610574268,4.09183932,2443.9,2443.6,0.55]
[1747610574444,4.09172536,2444.0,2443.6,2.07866519]
[1747610574766,4.09188779,2443.9,2443.6,2.07866519]
[1747610574960,4.09161382,2444.1,2443.6,2.07866519]
[1747610575266,4.09148561,2444.1,2443.6,2.07866519]
[1747610575463,4.09166466,2444.0,2443.6,2.07866519]
[1747610575679,4.09166466,2444.0,2443.7,1.20815515]
[1747610575970,4.09192533,2443.9,2443.7,1.20815515]
[1747610576345,4.09137814,2444.2,2443.7,1.20815515]
[1747610576544,4.09146708,2444.2,2443.7,1.20815515]
[1747610576965,9.94215754,2444.4,2443.9,4.09180704]
[1747610577167,9.94202807,2444.4,2444.1,0.8107]
[1747610577546,4.0913179,2444.3,2444.1,0.8107]
[1747610577947,10.69198609,2445.1,2444.2,0.55]
[1747610578153,4.09037007,2444.8,2444.2,0.55]
[1747610578368,10.69198609,2445.1,2444.3,0.54520896]
[1747610578369,4.09067306,2444.6,2444.3,0.54520896]
[1747610578573,4.09131822,2444.2,2444.1,1.3607]
[1747610578769,4.09131822,2444.2,2444.1,9.3847]
[1747610578986,4.09122254,2444.3,2444.1,8.574]
[1747610579278,4.09093214,2444.5,2444.1,8.574]
[1747610579461,8.7511,2444.6,2444.1,8.574]
[1747610579665,4.09131822,2444.2,2444.1,8.574]
[1747610579856,4.09182045,2443.9,2443.8,19.0307]
[1747610580185,4.09162528,2444.1,2443.8,27.0547]
[1747610580393,0.7511,2444.6,2443.9,8.574]
[1747610580394,4.09174412,2444.0,2443.9,8.574]
[1747610580557,8.0,2444.4,2443.9,8.574]
[1747610580759,4.09165302,2444.0,2443.9,8.574]
[1747610581561,4.09182045,2443.9,2443.8,17.67]
[1747610581761,4.09182045,2443.9,2443.8,26.244]
[1747610582999,4.0916968,2444.0,2443.8,26.244]
[1747610583200,4.09182045,2443.9,2443.8,26.244]
[1747610585114,4.84682045,2443.9,2443.8,26.244]
[1747610585313,4.09182045,2443.9,2443.8,8.574]
[1747610586397,0.8198,2443.8,2443.1,17.669]
[1747610586600,4.09265777,2443.4,2443.3,8.574]
[1747610586990,4.09299279,2443.2,2443.1,17.669]
[1747610587196,4.09299279,2443.2,2443.1,8.554]
[1747610587393,4.09299279,2443.2,2442.8,0.33622695]
[1747610587394,4.09349543,2442.9,2442.8,0.33622695]
[1747610587600,12.14466838,2442.9,2442.8,0.33622695]
[1747610587797,12.91329543,2442.9,2442.8,0.33622695]
[1747610588201,20.64649543,2442.9,2442.8,0.33622695]
[1747610589817,4.09407393,2442.6,2442.3,0.8275]
[1747610590015,4.09432253,2442.5,2442.3,0.8275]
[1747610590217,4.09377832,2442.8,2442.3,0.8275]
[1747610590525,4.09377832,2442.8,2442.3,5.86011817]
[1747610590526,4.09374299,2442.8,2442.3,5.86011817]
[1747610590696,4.09384218,2442.7,2442.3,1.76565]
[1747610590896,4.09392425,2442.7,2442.3,1.76565]
[1747610591326,4.09392425,2442.7,2442.4,0.26826124]
[1747610592138,8.551,2443.1,2442.5,0.55]
[1747610592433,4.09360965,2442.9,2442.5,0.81826124]
[1747610592586,4.09360965,2442.9,2442.5,1.48609668]
[1747610593535,4.09380123,2442.8,2442.6,0.26826124]
[1747610593731,4.09346915,2443.0,2442.7,8.556]
[1747610593955,4.09363087,2442.9,2442.7,8.556]
[1747610594353,4.093663,2442.8,2442.7,8.556]
[1747610595344,4.09316032,2443.1,2442.7,8.556]
[1747610595544,5.85102406,2443.2,2442.8,0.7845]
[1747610595715,4.093663,2442.8,2442.7,8.556]
[1747610595903,4.09316032,2443.1,2442.7,8.556]
[1747610596108,4.09341043,2443.0,2442.7,8.556]
[1747610596560,4.09351672,2442.9,2442.7,8.556]
[1747610597008,4.093663,2442.8,2442.7,8.556]
[1747610597358,4.09358653,2442.9,2442.7,8.556]
[1747610597509,4.093663,2442.8,2442.7,8.556]
[1747610598714,4.09358248,2442.9,2442.7,8.556]
[1747610598914,4.093663,2442.8,2442.7,8.556]
[1747610601154,16.547,2443.1,2442.6,8.557]
[1747610601363,4.09361407,2442.9,2442.6,8.557]
[1747610601582,5.85102406,2443.2,2442.6,8.557]
[1747610601771,4.09323321,2443.1,2442.7,0.55]
[1747610602121,0.8284,2443.5,2442.9,0.55]
[1747610602469,4.09266134,2443.4,2443.1,0.55]
[1747610602624,4.09266134,2443.4,2443.2,8.557]
[1747610603048,4.09282527,2443.3,2443.2,8.557]
[1747610603275,4.90572527,2443.3,2443.2,8.557]
[1747610603596,4.09282527,2443.3,2443.2,8.557]
[1747610603964,5.85102406,2443.7,2443.2,8.557]
[1747610604146,4.09246747,2443.6,2443.2,8.557]
[1747610604347,4.09246747,2443.6,2443.3,0.7737]
[1747610604782,4.09255483,2443.5,2443.3,0.7737]
[1747610604981,4.09265777,2443.4,2443.3,0.7737]
[1747610606453,4.09282527,2443.3,2443.2,8.557]
[1747610613398,9.94384933,2443.3,2443.2,8.557]
[1747610614271,17.94384933,2443.3,2443.2,8.557]
[1747610614686,26.48084933,2443.3,2443.2,8.557]
[1747610615804,4.09383059,2442.7,2442.6,18.01122695]
[1747610616003,4.09383059,2442.7,2442.6,26.56822695]
[1747610616205,4.09383059,2442.7,2442.6,26.50161381]
[1747610616514,4.09369634,2442.8,2442.6,26.50161381]
[1747610616515,4.09381555,2442.8,2442.6,26.50161381]
[1747610616805,4.09383059,2442.7,2442.6,26.50161381]
[1747610617907,4.91913059,2442.7,2442.6,26.50161381]
[1747610618110,4.09383059,2442.7,2442.6,26.50161381]
[1747610618311,0.8253,2443.0,2442.6,26.50161381]
[1747610618515,8.534,2442.9,2442.6,27.26331381]
[1747610618718,8.534,2442.9,2442.6,26.50161381]
[1747610619009,5.85102406,2443.1,2442.6,26.50161381]
[1747610619010,4.09383059,2442.7,2442.6,26.50161381]
[1747610619516,4.09383059,2442.7,2442.6,26.232]
[1747610620085,4.09383059,2442.7,2442.6,17.675]
[1747610620316,5.85102406,2442.7,2442.3,8.87122695]
[1747610620490,5.85102406,2442.7,2442.4,5.46706075]
[1747610620897,5.85102406,2442.7,2442.5,4.09414289]
[1747610621208,5.85102406,2442.7,2442.5,0.26961141]
[1747610621391,4.09321911,2443.1,2442.7,0.8284]
[1747610621586,4.09349543,2442.9,2442.8,8.535]
[1747610622517,4.09322781,2443.1,2442.8,8.535]
[1747610622518,4.09317814,2443.1,2442.8,8.535]
[1747610623016,4.09317814,2443.1,2442.9,0.26961141]
[1747610623323,9.94408014,2443.2,2442.9,0.26961141]
[1747610623508,4.0932379,2443.1,2442.9,0.26961141]
[1747610624015,4.09291846,2443.3,2443.0,0.26961141]
[1747610624198,4.09299445,2443.2,2443.0,0.26961141]
[1747610625398,4.09316032,2443.1,2442.8,26.54722695]
[1747610625987,4.09339807,2443.0,2442.8,26.54722695]
[1747610626504,4.0931691,2443.1,2442.8,26.54722695]
[1747610626710,4.09349543,2442.9,2442.8,26.54722695]
[1747610627596,4.09340272,2443.0,2442.8,26.54722695]
[1747610627921,4.09349543,2442.9,2442.8,26.54722695]
[1747610628290,4.09349543,2442.9,2442.8,26.48057238]
[1747610629220,4.09349543,2442.9,2442.8,17.94557238]
[1747610629407,4.09341633,2443.0,2442.8,26.48057238]
[1747610629606,0.7786,2443.1,2442.8,26.48057238]
[1747610629793,4.09349543,2442.9,2442.8,26.48057238]
[1747610630388,4.09340601,2443.0,2442.8,26.48057238]
[1747610630606,4.09349543,2442.9,2442.8,26.48057238]
[1747610632422,4.09349543,2442.9,2442.8,26.211]
[1747610633925,10.74871949,2442.9,2442.8,8.535]
[1747610636229,18.74871949,2442.9,2442.8,8.535]
[1747610637228,23.04871949,2442.9,2442.8,8.535]
[1747610637408,18.74871949,2442.9,2442.8,8.535]
[1747610637906,10.74879256,2442.9,2442.4,8.536]
[1747610638228,10.75513762,2443.4,2442.8,4.093663]
[1747610638416,4.09300319,2443.2,2442.9,8.80565454]
[1747610639527,4.09300319,2443.2,2443.0,0.26965454]
[1747610639829,4.09316032,2443.1,2443.0,0.26965454]
[1747610640702,4.09332787,2443.0,2442.9,8.536]
[1747610641646,5.85102406,2443.4,2443.0,4.88964357]
[1747610641819,5.85102406,2443.4,2443.0,0.7964]
[1747610642533,4.092829,2443.3,2443.0,0.7964]
[1747610642706,4.092829,2443.3,2443.1,0.26968799]
[1747610642906,5.85102406,2443.6,2443.1,17.95402485]
[1747610643111,9.94348435,2443.6,2443.2,1.87504248]
[1747610643511,9.94348435,2443.6,2443.3,0.7553]
[1747610643715,4.09262863,2443.5,2443.4,8.535]
[1747610644314,4.09240867,2443.6,2443.4,8.80468799]
[1747610644512,4.09249028,2443.5,2443.4,8.80468799]
[1747610646449,4.09239808,2443.6,2443.4,8.80468799]
[1747610646650,4.09249028,2443.5,2443.4,8.80468799]
[1747610646849,4.09237254,2443.6,2443.4,9.94819104]
[1747610647344,4.09249028,2443.5,2443.4,9.94819104]
[1747610647546,4.09249028,2443.5,2443.4,8.80468799]
[1747610648056,4.09249028,2443.5,2443.4,8.535]
[1747610649723,4.09235115,2443.6,2443.4,8.535]
[1747610649724,4.09241226,2443.6,2443.4,8.535]
[1747610649923,4.09249028,2443.5,2443.4,8.535]
[1747610650123,4.09242228,2443.6,2443.4,8.535]
[1747610650821,4.09249028,2443.5,2443.4,8.535]
[1747610652451,4.09215636,2443.7,2443.4,8.535]
[1747610652639,4.09241947,2443.6,2443.4,8.535]
[1747610653360,4.09249028,2443.5,2443.4,8.535]
[1747610653877,0.7944,2444.1,2443.5,5.46785674]
[1747610654025,4.09134761,2444.2,2443.7,0.55]
[1747610654224,4.09151416,2444.1,2443.9,0.8254]
[1747610654453,4.09107427,2444.4,2444.0,9.059]
[1747610654647,4.09107427,2444.4,2444.0,27.72144]
[1747610654844,4.09099789,2444.4,2444.0,27.72144]
[1747610655052,4.09069652,2444.6,2444.2,0.55]
[1747610655350,4.09048634,2444.7,2444.3,0.8227]
[1747610657659,4.85489974,2445.2,2444.1,0.26862091]
[1747610657660,6.61622406,2445.5,2444.9,4.09013941]
[1747610657856,0.7652,2445.7,2445.1,1.3727]
[1747610658078,4.08924453,2445.5,2445.1,1.3727]
[1747610658465,4.08932075,2445.4,2445.1,1.3727]
[1747610658664,4.08907405,2445.6,2445.1,1.3727]
[1747610658895,4.08864175,2445.8,2445.1,1.3727]
[1747610658896,6.66722406,2445.9,2445.1,9.47632505]
[1747610659216,4.08873313,2445.8,2445.2,4.63948766]
[1747610659364,6.66722406,2446.4,2445.6,4.08890217]
[1747610659571,4.08824278,2446.1,2445.8,0.8298]
[1747610659875,4.08826947,2446.1,2445.8,0.8298]
[1747610660198,6.66722406,2446.4,2445.8,0.8298]
[1747610660199,4.08833816,2446.0,2445.8,0.8298]
[1747610661183,4.08787833,2446.3,2445.8,18.4978]
[1747610661376,24.41502406,2446.7,2445.8,23.51988203]
[1747610661576,8.0,2446.6,2445.9,4.63846971]
[1747610661785,5.85102406,2446.7,2446.1,0.55]
[1747610661988,4.08689197,2446.9,2446.3,4.63771159]
[1747610662304,4.08698991,2446.8,2446.5,0.55]
[1747610662499,4.08697073,2446.8,2446.2,0.7574]
[1747610662796,8.7523,2446.7,2446.1,8.504]
[1747610663044,4.08797318,2446.2,2446.1,8.504]
[1747610665768,4.08847459,2445.9,2445.8,17.668]
[1747610665971,14.33802406,2446.2,2445.8,17.668]
[1747610666195,4.08847459,2445.9,2445.8,17.668]